fUSD/lending_fUSD_20250630
["ID","MTS","AMOUNT","RATE_DAILY","PERIOD"]
[368686410,1751296993085,-619.05,0.00013981,2]
[368686411,1751296993109,-492.57,0.00013981,2]
[368686412,1751296993130,-490.0,0.00013981,2]
[368686413,1751296993152,-728.94,0.00013981,2]
[368686414,1751296993175,-913.76,0.00013981,2]
[368686415,1751296993197,-502.73,0.00013981,2]
[368686416,1751296993219,-567.12,0.00013981,2]
[368686417,1751296993242,-741.15,0.00013981,2]
[368686418,1751296993266,-490.0,0.00013981,2]
[368686419,1751296993289,-490.0,0.00013981,2]
[368686420,1751296993313,-490.0,0.00013981,2]
[368686421,1751296993335,-709.24,0.00013981,2]
[368686422,1751296993357,-2521.22,0.00013981,2]
[368686423,1751296993379,-490.0,0.00013981,2]
[368686424,1751296993401,-490.0,0.00013981,2]
[368686425,1751296993425,-1580.98,0.00013981,2]
[368686426,1751296993448,-490.0,0.00013981,2]
[368686427,1751296993473,-647.65,0.00013981,2]
[368686428,1751296993495,-490.0,0.00013981,2]
[368686429,1751296993516,-50121.9139687,0.00013982,2]
[368686430,1751296993539,-500.0,0.00013985,2]
[368686431,1751296993562,-540.24609223,0.00013985,2]
[368686432,1751296993585,-504.10468096,0.00013985,2]
[368686433,1751296993606,-500.0,0.00013985,2]
[368686434,1751296993630,-500.0,0.00013985,2]
[368686435,1751296993653,-415.33149384,0.00013985,2]
[368686436,1751296993674,-500.0,0.00013985,2]
[368686437,1751296993698,-282.88384397,0.00013985,2]
[368686438,1751296993721,-151.0,0.00013985,2]
[368686439,1751296993743,-151.0,0.00013985,2]
[368686440,1751296993764,-250.248127,0.00013985,2]
[368686441,1751296993785,-10294.61450814,0.00013985,2]
[368686442,1751296993810,-310112.59489667,0.00013985,2]
[368686443,1751297039702,-504.0,0.00013542,2]
[368686444,1751297039726,-173.682586,0.00013709,2]
[368686445,1751297039749,-549.93,0.00013888,2]
[368686446,1751297039771,-2243.34,0.00013888,2]
[368686447,1751297039792,-490.0,0.00013888,2]
[368686448,1751297039815,-490.0,0.00013888,2]
[368686449,1751297039840,-4049.06,0.00013888,2]
[368686450,1751297039862,-490.0,0.00013898,2]
[368686451,1751297039883,-490.0,0.00013898,2]
[368686452,1751297039905,-1843.93,0.00013899,2]
[368686453,1751297039927,-2165.12,0.00013899,2]
[368686454,1751297039949,-6397.13,0.00013899,2]
[368686455,1751297039972,-23165.24,0.00013899,2]
[368686456,1751297039993,-490.0,0.00013899,2]
[368686457,1751297040015,-128284.55,0.00013899,2]
[368686458,1751297040039,-2240.38,0.00013899,2]
[368686459,1751297040063,-5685.01,0.00013978,2]
[368686460,1751297040089,-1551.02,0.00013978,2]
[368686461,1751297040113,-490.0,0.00013978,2]
[368686462,1751297040136,-490.0,0.00013978,2]
[368686463,1751297040159,-1660.81,0.00013978,2]
[368686464,1751297040186,-75151.0329999,0.00013978,2]
[368686465,1751297040209,-1288.82,0.00013978,2]
[368686466,1751297040232,-490.0,0.00013978,2]
[368686467,1751297040257,-2292.39,0.00013978,2]
[368686468,1751297040281,-911.36,0.00013978,2]
[368686469,1751297040304,-563.32,0.00013978,2]
[368686470,1751297040327,-1536.42,0.00013978,2]
[368686471,1751297040353,-776.23,0.00013978,2]
[368686472,1751297040376,-623.48,0.00013978,2]
[368686473,1751297040399,-641.37,0.00013978,2]
[368686474,1751297040421,-3238.46,0.00013979,2]
[368686475,1751297040444,-2720.17,0.00013979,2]
[368686476,1751297040466,-2089.97,0.00013979,2]
[368686477,1751297040490,-490.0,0.00013981,2]
[368686478,1751297040513,-3322.14,0.00013981,2]
[368686479,1751297040535,-2914.37,0.00013981,2]
[368686480,1751297040559,-692.16,0.00013981,2]
[368686481,1751297040585,-714.86,0.00013981,2]
[368686482,1751297040607,-490.0,0.00013981,2]
[368686483,1751297040628,-490.0,0.00013981,2]
[368686484,1751297040651,-1401.68,0.00013981,2]
[368686485,1751297041081,-731.4,0.00013981,2]
[368686486,1751297041106,-490.0,0.00013981,2]
[368686487,1751297041128,-3433.17,0.00013981,2]
[368686488,1751297041150,-490.0,0.00013981,2]
[368686489,1751297041171,-490.0,0.00013981,2]
[368686490,1751297041197,-500.0,0.00013981,2]
[368686491,1751297041218,-490.0,0.00013981,2]
[368686492,1751297041240,-3800.78,0.00013981,2]
[368686493,1751297041262,-490.0,0.00013981,2]
[368686494,1751297041283,-490.0,0.00013981,2]
[368686495,1751297041305,-490.0,0.00013981,2]
[368686496,1751297041329,-500.0,0.00013985,2]
[368686497,1751297041351,-5147.30725407,0.00013985,2]
[368686498,1751297041375,-420675.90716003,0.00013985,2]
[368686499,1751297092692,300.0,0.000134,4]
[368686500,1751297094889,700.0,0.000135,4]
[368686501,1751297097187,1100.0,0.000136,4]
[368686502,1751297099293,1400.0,0.000137,5]
[368686503,1751297101609,1086.91384404,0.000138,5]
[368686504,1751297101632,713.08615596,0.000138,5]
[368686505,1751297103628,300.0,0.000139,5]
[368686506,1751297104557,546.0,0.0001119,3]
[368686507,1751297110998,-184.29721922,0.00013881,2]
[368686508,1751297111023,-184.29721916,0.00013883,2]
[368686509,1751297111047,-184.29721916,0.00013885,2]
[368686510,1751297111069,-553.12447954,0.00013886,2]
[368686511,1751297111092,-152.95574294,0.00013886,2]
[368686512,1751297111116,-1200.0,0.00013887,2]
[368686513,1751297111141,-300.0,0.00013887,2]
[368686514,1751297111166,-184.29721916,0.00013887,2]
[368686515,1751297111190,-553.12447949,0.00013888,2]
[368686516,1751297111212,-1575.28,0.00013888,2]
[368686517,1751297111238,-1978.5,0.00013888,2]
[368686518,1751297111259,-490.0,0.00013888,2]
[368686519,1751297111281,-490.0,0.00013888,2]
[368686520,1751297111304,-238.29592,0.00013888,2]
[368686521,1751297111327,-805.35,0.00013888,2]
[368686522,1751297111351,-850.68,0.00013888,2]
[368686523,1751297111374,-1349.25,0.00013888,2]
[368686524,1751297111396,-2204.86,0.00013888,2]
[368686525,1751297111420,-490.0,0.00013888,2]
[368686526,1751297111445,-553.12447949,0.00013889,2]
[368686527,1751297111473,-184.29721916,0.00013889,2]
[368686528,1751297111498,-553.12447949,0.00013891,2]
[368686529,1751297111522,-184.29721916,0.00013892,2]
[368686530,1751297111547,-553.12447949,0.00013892,2]
[368686531,1751297111572,-184.29721916,0.00013894,2]
[368686532,1751297111596,-553.12447949,0.00013894,2]
[368686533,1751297111620,-184.29721916,0.00013896,2]
[368686534,1751297111645,-184.29721916,0.00013898,2]
[368686535,1751297111668,-490.0,0.00013898,2]
[368686536,1751297111690,-150.0,0.00013898,2]
[368686537,1751297111714,-1176.21,0.00013898,2]
[368686538,1751297111736,-858.74,0.00013898,2]
[368686539,1751297111758,-490.0,0.00013898,2]
[368686540,1751297111781,-2625.73,0.00013898,2]
[368686541,1751297111803,-490.0,0.00013898,2]
[368686542,1751297111825,-490.0,0.00013898,2]
[368686543,1751297111849,-895.84,0.00013898,2]
[368686544,1751297111872,-490.0,0.00013898,2]
[368686545,1751297111894,-490.0,0.00013898,2]
[368686546,1751297111920,-1086.68,0.00013898,2]
[368686547,1751297111943,-1091.7,0.00013898,2]
[368686548,1751297111965,-250.0,0.00013899,2]
[368686549,1751297111988,-2080.43,0.00013899,2]
[368686550,1751297112011,-6932.92,0.00013899,2]
[368686551,1751297112036,-4420.24,0.00013899,2]
[368686552,1751297112059,-3167.0,0.00013899,2]
[368686553,1751297112083,-5158.03,0.00013899,2]
[368686554,1751297112107,-1775.96,0.00013899,2]
[368686555,1751297112134,-279.72349392,0.000139,2]
[368686556,1751297112160,-184.29721916,0.000139,2]
[368686557,1751297112188,-198.93298977,0.00013949,2]
[368686558,1751297112215,-1670.14,0.00013978,2]
[368686559,1751297112237,-1478.51,0.00013978,2]
[368686560,1751297112261,-560.11,0.00013978,2]
[368686561,1751297112283,-490.0,0.00013978,2]
[368686562,1751297112307,-50647.7939663,0.00013978,2]
[368686563,1751297112330,-1364.81,0.00013978,2]
[368686564,1751297112353,-554.43,0.00013978,2]
[368686565,1751297112375,-490.0,0.00013978,2]
[368686566,1751297112399,-554.07,0.00013978,2]
[368686567,1751297112422,-5160.3503147,0.00013978,2]
[368686568,1751297112445,-836.8,0.00013978,2]
[368686569,1751297112469,-1632.99,0.00013978,2]
[368686570,1751297112494,-803.38,0.00013978,2]
[368686571,1751297112518,-1724.44,0.00013978,2]
[368686572,1751297112540,-490.0,0.00013978,2]
[368686573,1751297112563,-490.0,0.00013978,2]
[368686574,1751297112588,-891.08,0.00013978,2]
[368686575,1751297112612,-9307.67,0.00013978,2]
[368686576,1751297112637,-585.31,0.00013978,2]
[368686577,1751297112662,-698.57,0.00013978,2]
[368686578,1751297112686,-832.39,0.00013978,2]
[368686579,1751297112710,-490.0,0.00013978,2]
[368686580,1751297112735,-1381.0,0.00013978,2]
[368686581,1751297112761,-867.59,0.00013978,2]
[368686582,1751297112788,-490.0,0.00013978,2]
[368686583,1751297112813,-2509.37,0.00013979,2]
[368686584,1751297112838,-490.0,0.00013979,2]
[368686585,1751297112861,-2719.98,0.00013979,2]
[368686586,1751297112886,-543.21,0.00013981,2]
[368686587,1751297112910,-3510.22,0.00013981,2]
[368686588,1751297112932,-990.62,0.00013981,2]
[368686589,1751297112955,-490.0,0.00013981,2]
[368686590,1751297112977,-490.0,0.00013981,2]
[368686591,1751297112999,-490.0,0.00013981,2]
[368686592,1751297113021,-490.0,0.00013981,2]
[368686593,1751297113045,-1341.07,0.00013981,2]
[368686594,1751297113068,-490.0,0.00013981,2]
[368686595,1751297113091,-4968.66,0.00013981,2]
[368686596,1751297113114,-490.0,0.00013981,2]
[368686597,1751297113143,-490.0,0.00013981,2]
[368686598,1751297113188,-490.0,0.00013981,2]
[368686599,1751297113212,-490.0,0.00013981,2]
[368686600,1751297113234,-490.0,0.00013981,2]
[368686601,1751297113258,-918.03,0.00013981,2]
[368686602,1751297113759,-490.0,0.00013981,2]
[368686603,1751297113783,-1804.43,0.00013981,2]
[368686604,1751297113807,-490.0,0.00013981,2]
[368686605,1751297113832,-2020.09,0.00013981,2]
[368686606,1751297113856,-490.0,0.00013981,2]
[368686607,1751297113879,-524.43,0.00013981,2]
[368686608,1751297113903,-2294.32,0.00013981,2]
[368686609,1751297113928,-1157.85,0.00013981,2]
[368686610,1751297113959,-698.22,0.00013981,2]
[368686611,1751297113985,-1396.11,0.00013981,2]
[368686612,1751297114009,-500.0,0.00013985,2]
[368686613,1751297114034,-500.0,0.00013985,2]
[368686614,1751297114058,-251.30400112,0.00013985,2]
[368686615,1751297114081,-500.0,0.00013985,2]
[368686616,1751297114106,-125.6245026,0.00013985,2]
[368686617,1751297115810,490.0,0.00027397,120]
[368686618,1751297134119,150.0,0.00014103,4]
[368686619,1751297165392,-208.50893,0.00013881,2]
[368686620,1751297165423,-5000.0,0.00013885,2]
[368686621,1751297165449,-167.18019463,0.00013886,2]
[368686622,1751297165471,-600.0,0.00013887,2]
[368686623,1751297165495,-1200.0,0.00013887,2]
[368686624,1751297165519,-1715.48,0.00013888,2]
[368686625,1751297165542,-2006.26,0.00013888,2]
[368686626,1751297165566,-1094.0,0.00013888,2]
[368686627,1751297165588,-1357.85,0.00013888,2]
[368686628,1751297165611,-1812.46,0.00013888,2]
[368686629,1751297165633,-2028.6,0.00013888,2]
[368686630,1751297165655,-1442.26,0.00013888,2]
[368686631,1751297165677,-1303.88,0.00013888,2]
[368686632,1751297165702,-553.12447949,0.00013895,2]
[368686633,1751297165725,-553.12447949,0.00013897,2]
[368686634,1751297165749,-490.0,0.00013898,2]
[368686635,1751297165771,-937.59,0.00013898,2]
[368686636,1751297165795,-1080.7,0.00013898,2]
[368686637,1751297165817,-490.0,0.00013898,2]
[368686638,1751297165840,-490.0,0.00013898,2]
[368686639,1751297165864,-4805.39,0.00013898,2]
[368686640,1751297165887,-490.0,0.00013898,2]
[368686641,1751297165909,-490.0,0.00013898,2]
[368686642,1751297165939,-490.0,0.00013898,2]
[368686643,1751297165963,-1066.22,0.00013898,2]
[368686644,1751297165990,-1194.64,0.00013898,2]
[368686645,1751297166014,-553.12447949,0.00013898,2]
[368686646,1751297166037,-19939.06,0.00013899,2]
[368686647,1751297166060,-1564.65,0.00013899,2]
[368686648,1751297166084,-3244.61,0.00013899,2]
[368686649,1751297166108,-2606.83,0.00013899,2]
[368686650,1751297166134,-5486.46185186,0.000139,2]
[368686651,1751297166157,-1196.42123766,0.000139,2]
[368686652,1751297166179,-172.23610946,0.000139,2]
[368686653,1751297166202,-553.12447949,0.000139,2]
[368686654,1751297166227,-500.0,0.00013973,2]
[368686655,1751297166249,-500.0,0.00013973,2]
[368686656,1751297166270,-174.4,0.00013973,2]
[368686657,1751297166293,-1499.756,0.00013973,2]
[368686658,1751297166316,-504.0,0.00013978,2]
[368686659,1751297166340,-624.71,0.00013978,2]
[368686660,1751297166367,-4798.45,0.00013978,2]
[368686661,1751297166390,-1139.89,0.00013978,2]
[368686662,1751297166412,-490.0,0.00013978,2]
[368686663,1751297166442,-519.58,0.00013978,2]
[368686664,1751297166467,-2251.0,0.00013978,2]
[368686665,1751297166491,-490.0,0.00013978,2]
[368686666,1751297166515,-490.0,0.00013978,2]
[368686667,1751297166538,-490.0,0.00013978,2]
[368686668,1751297166561,-613.37,0.00013978,2]
[368686669,1751297166584,-614.05,0.00013978,2]
[368686670,1751297166607,-1515.11,0.00013978,2]
[368686671,1751297166629,-490.0,0.00013978,2]
[368686672,1751297166651,-490.0,0.00013978,2]
[368686673,1751297166676,-570.01,0.00013978,2]
[368686674,1751297166700,-490.0,0.0001398,2]
[368686675,1751297166723,-490.0,0.00013981,2]
[368686676,1751297166748,-490.0,0.00013981,2]
[368686677,1751297166770,-490.0,0.00013981,2]
[368686678,1751297166795,-959.89,0.00013981,2]
[368686679,1751297166819,-490.0,0.00013981,2]
[368686680,1751297166843,-490.0,0.00013981,2]
[368686681,1751297166866,-490.0,0.00013981,2]
[368686682,1751297166890,-2487.59,0.00013981,2]
[368686683,1751297166913,-3846.93,0.00013981,2]
[368686684,1751297166935,-490.0,0.00013981,2]
[368686685,1751297166961,-633.8,0.00013981,2]
[368686686,1751297166984,-490.0,0.00013981,2]
[368686687,1751297167009,-3103.81,0.00013981,2]
[368686688,1751297167033,-490.0,0.00013981,2]
[368686689,1751297167067,-1159.73,0.00013981,2]
[368686690,1751297167096,-490.0,0.00013981,2]
[368686691,1751297167122,-4364.17,0.00013981,2]
[368686692,1751297167156,-1196.84,0.00013981,2]
[368686693,1751297167181,-3732.78,0.00013981,2]
[368686694,1751297167205,-490.0,0.00013981,2]
[368686695,1751297167231,-741.06,0.00013981,2]
[368686696,1751297167255,-445.67420966,0.00013981,2]
[368686697,1751297167280,-374.3754974,0.00013985,2]
[368686698,1751297167307,-500.0,0.00013985,2]
[368686699,1751297167333,-475.76809782,0.00013985,2]
[368686700,1751297167356,-200.0,0.00013985,2]
[368686701,1751297167380,-16749.46995355,0.00013985,2]
[368686702,1751297196857,1221.57,0.00013087,2]
[368686703,1751297230581,-761.85066,0.0001385,2]
[368686704,1751297230605,-182.445314,0.00013881,2]
[368686705,1751297230628,-490.0,0.00013888,2]
[368686706,1751297230652,-490.0,0.00013888,2]
[368686707,1751297230675,-1651.04,0.00013888,2]
[368686708,1751297230699,-1260.99,0.00013888,2]
[368686709,1751297230723,-1293.2,0.00013888,2]
[368686710,1751297230747,-1165.92,0.00013888,2]
[368686711,1751297230769,-1136.27,0.00013888,2]
[368686712,1751297230792,-1559.05,0.00013888,2]
[368686713,1751297230815,-667.7,0.00013888,2]
[368686714,1751297230839,-1536.81,0.00013888,2]
[368686715,1751297230862,-490.0,0.00013888,2]
[368686716,1751297230887,-490.0,0.00013888,2]
[368686717,1751297230916,-639.98,0.00013888,2]
[368686718,1751297230943,-207.4,0.00013891,2]
[368686719,1751297230972,-849.4,0.00013898,2]
[368686720,1751297230998,-490.0,0.00013898,2]
[368686721,1751297231030,-1333.59,0.00013898,2]
[368686722,1751297231060,-7519.35,0.00013898,2]
[368686723,1751297231087,-1006.69,0.00013898,2]
[368686724,1751297231113,-764.43,0.00013898,2]
[368686725,1751297231141,-490.0,0.00013898,2]
[368686726,1751297231172,-490.0,0.00013898,2]
[368686727,1751297231200,-955.22,0.00013898,2]
[368686728,1751297231226,-658.82,0.00013898,2]
[368686729,1751297231252,-2093.68,0.00013899,2]
[368686730,1751297231284,-2631.41,0.00013899,2]
[368686731,1751297231309,-2427.05,0.00013899,2]
[368686732,1751297231335,-2735.49,0.00013899,2]
[368686733,1751297231358,-186.48232928,0.000139,2]
[368686734,1751297231382,-500.0,0.00013973,2]
[368686735,1751297231405,-500.0,0.00013973,2]
[368686736,1751297231429,-490.0,0.00013978,2]
[368686737,1751297231452,-2975.05,0.00013978,2]
[368686738,1751297231477,-2467.6,0.00013978,2]
[368686739,1751297231500,-676.64,0.00013978,2]
[368686740,1751297231529,-2984.27,0.00013978,2]
[368686741,1751297231552,-1627.71,0.00013978,2]
[368686742,1751297231576,-1252.16,0.00013978,2]
[368686743,1751297231600,-3290.12,0.00013978,2]
[368686744,1751297231622,-965.11,0.00013978,2]
[368686745,1751297231644,-1469.35,0.00013978,2]
[368686746,1751297231668,-3318.35,0.00013978,2]
[368686747,1751297231691,-490.0,0.00013978,2]
[368686748,1751297231715,-984.47,0.00013978,2]
[368686749,1751297231738,-1423.86,0.00013978,2]
[368686750,1751297231761,-976.7,0.00013978,2]
[368686751,1751297231784,-589.02,0.00013978,2]
[368686752,1751297231811,-500.0,0.00013978,2]
[368686753,1751297231836,-2803.87,0.00013978,2]
[368686754,1751297231860,-3187.2,0.00013978,2]
[368686755,1751297231883,-759.15,0.00013978,2]
[368686756,1751297231906,-638.050687,0.0001398,2]
[368686757,1751297231930,-490.0,0.0001398,2]
[368686758,1751297231952,-426.86355211,0.0001398,2]
[368686759,1751297231982,-490.0,0.0001398,2]
[368686760,1751297232004,-500.0,0.0001398,2]
[368686761,1751297232028,-490.0,0.0001398,2]
[368686762,1751297232052,-5231.24,0.00013981,2]
[368686763,1751297232075,-500.0,0.00013981,2]
[368686764,1751297232099,-490.0,0.00013981,2]
[368686765,1751297232125,-490.0,0.00013981,2]
[368686766,1751297232153,-3186.77,0.00013981,2]
[368686767,1751297232184,-490.0,0.00013981,2]
[368686768,1751297232211,-490.0,0.00013981,2]
[368686769,1751297232241,-5721.03,0.00013981,2]
[368686770,1751297232270,-2029.54,0.00013981,2]
[368686771,1751297232295,-490.0,0.00013981,2]
[368686772,1751297232319,-490.0,0.00013981,2]
[368686773,1751297232343,-1919.04,0.00013981,2]
[368686774,1751297232367,-1261.64,0.00013981,2]
[368686775,1751297232390,-1018.03,0.00013981,2]
[368686776,1751297232412,-490.0,0.00013981,2]
[368686777,1751297232436,-1096.07,0.00013981,2]
[368686778,1751297232459,-490.0,0.00013981,2]
[368686779,1751297232484,-3617.0,0.00013981,2]
[368686780,1751297232506,-490.0,0.00013981,2]
[368686781,1751297232529,-490.0,0.00013981,2]
[368686782,1751297232554,-911.84,0.00013981,2]
[368686783,1751297232578,-490.0,0.00013981,2]
[368686784,1751297232603,-503.17,0.00013981,2]
[368686785,1751297232630,-500.0,0.00013981,2]
[368686786,1751297232654,-2390.25,0.00013981,2]
[368686787,1751297232676,-490.0,0.00013981,2]
[368686788,1751297232700,-162.46914835,0.00013984,2]
[368686789,1751297232723,-500.0,0.00013984,2]
[368686790,1751297232749,-401.14607666,0.00013984,2]
[368686791,1751297232774,-500.0,0.00013984,2]
[368686792,1751297232796,-500.0,0.00013984,2]
[368686793,1751297232820,-500.0,0.00013984,2]
[368686794,1751297232842,-273.93121789,0.00013984,2]
[368686795,1751297232865,-500.0,0.00013984,2]
[368686796,1751297232888,-500.0,0.00013984,2]
[368686797,1751297232909,-198968.29505351,0.00013985,2]
[368686798,1751297232932,-686.57,0.00013985,2]
[368686799,1751297232956,-490.0,0.00013985,2]
[368686800,1751297232979,-500.0,0.00013985,2]
[368686801,1751297233002,-490.0,0.00013985,2]
[368686802,1751297233027,-603.42,0.00013985,2]
[368686803,1751297233051,-490.0,0.00013985,2]
[368686804,1751297233076,-500.0,0.00013985,2]
[368686805,1751297233100,-500.0,0.00013985,2]
[368686806,1751297233125,-500.0,0.00013985,2]
[368686807,1751297233150,-373.84,0.00013985,2]
[368686808,1751297233175,-490.0,0.00013985,2]
[368686809,1751297233200,-490.0,0.00013986,2]
[368686810,1751297233222,-490.0,0.00013986,2]
[368686811,1751297233247,-982.35,0.00013986,2]
[368686812,1751297233272,-490.0,0.00013986,2]
[368686813,1751297233295,-529.48,0.00013986,2]
[368686814,1751297233320,-1074.0,0.00013986,2]
[368686815,1751297233342,-490.0,0.00013986,2]
[368686816,1751297233365,-490.0,0.00013986,2]
[368686817,1751297233388,-490.0,0.00013986,2]
[368686818,1751297233412,-490.0,0.00013986,2]
[368686819,1751297233436,-957.17,0.00013986,2]
[368686820,1751297233458,-616.39,0.00013986,2]
[368686821,1751297233481,-192.61486034,0.00013986,2]
[368686822,1751297233504,-490.0,0.00013986,2]
[368686823,1751297233529,-628.01,0.00013986,2]
[368686824,1751297233555,-437.54888878,0.00013986,2]
[368686825,1751297233578,-505.63706353,0.00013986,2]
[368686826,1751297233600,-513.86,0.00013986,2]
[368686827,1751297233623,-2291.07,0.00013986,2]
[368686828,1751297233651,-516.67,0.00013986,2]
[368686829,1751297233674,-490.0,0.00013986,2]
[368686830,1751297233696,-490.0,0.00013986,2]
[368686831,1751297233718,-678.41,0.00013986,2]
[368686832,1751297233740,-490.0,0.00013986,2]
[368686833,1751297233765,-490.0,0.00013986,2]
[368686834,1751297233788,-490.0,0.00013986,2]
[368686835,1751297233810,-524.94,0.00013986,2]
[368686836,1751297233835,-546.69,0.00013986,2]
[368686837,1751297233856,-482.90828809,0.00013986,2]
[368686838,1751297233880,-655.68,0.00013986,2]
[368686839,1751297233905,-510.0,0.00013986,2]
[368686840,1751297233928,-490.0,0.00013986,2]
[368686841,1751297233951,-490.0,0.00013986,2]
[368686842,1751297234264,-823.64,0.00013986,2]
[368686843,1751297234288,-1089.26,0.00013986,2]
[368686844,1751297234313,-490.0,0.00013986,2]
[368686845,1751297234341,-490.0,0.00013986,2]
[368686846,1751297234364,-605.64,0.00013986,2]
[368686847,1751297234388,-490.0,0.00013986,2]
[368686848,1751297234411,-490.0,0.00013986,2]
[368686849,1751297234434,-490.0,0.00013986,2]
[368686850,1751297234457,-490.0,0.00013986,2]
[368686851,1751297234479,-490.0,0.00013986,2]
[368686852,1751297234502,-490.0,0.00013986,2]
[368686853,1751297234526,-490.0,0.00013986,2]
[368686854,1751297234549,-492.07,0.00013986,2]
[368686855,1751297234572,-490.0,0.00013986,2]
[368686856,1751297234596,-657.97,0.00013986,2]
[368686857,1751297234618,-542.69,0.00013986,2]
[368686858,1751297234641,-574.38,0.00013986,2]
[368686859,1751297234663,-517.94060383,0.00013986,2]
[368686860,1751297234686,-506.36,0.00013986,2]
[368686861,1751297234709,-490.0,0.00013986,2]
[368686862,1751297234732,-408.4387053,0.00013986,2]
[368686863,1751297234755,-490.0,0.00013986,2]
[368686864,1751297234778,-211.640814,0.00013986,2]
[368686865,1751297234800,-490.0,0.00013986,2]
[368686866,1751297234822,-490.0,0.00013986,2]
[368686867,1751297234844,-490.0,0.00013986,2]
[368686868,1751297234866,-214.68682279,0.00013986,2]
[368686869,1751297234887,-490.0,0.00013986,2]
[368686870,1751297234909,-490.0,0.00013986,2]
[368686871,1751297234932,-490.0,0.00013986,2]
[368686872,1751297234954,-499.4,0.00013986,2]
[368686873,1751297234976,-490.0,0.00013986,2]
[368686874,1751297234998,-863.77,0.00013986,2]
[368686875,1751297235021,-1337.19,0.00013986,2]
[368686876,1751297235045,-490.0,0.00013986,2]
[368686877,1751297235070,-1241.56,0.00013986,2]
[368686878,1751297235094,-490.0,0.00013986,2]
[368686879,1751297235117,-490.0,0.00013986,2]
[368686880,1751297235140,-490.0,0.00013986,2]
[368686881,1751297235168,-490.0,0.00013986,2]
[368686882,1751297235191,-490.0,0.00013986,2]
[368686883,1751297235214,-490.0,0.00013986,2]
[368686884,1751297235240,-283.967637,0.00013986,2]
[368686885,1751297235263,-488.00167306,0.00013986,2]
[368686886,1751297235285,-490.0,0.00013986,2]
[368686887,1751297235307,-2651.39,0.00013986,2]
[368686888,1751297235330,-1234.69,0.00013986,2]
[368686889,1751297235352,-490.0,0.00013986,2]
[368686890,1751297235375,-803.46,0.00013986,2]
[368686891,1751297235397,-490.0,0.00013986,2]
[368686892,1751297235420,-490.0,0.00013986,2]
[368686893,1751297235443,-531.73,0.00013986,2]
[368686894,1751297235467,-504.02,0.00013986,2]
[368686895,1751297235489,-490.0,0.00013986,2]
[368686896,1751297235512,-490.0,0.00013986,2]
[368686897,1751297235535,-490.0,0.00013986,2]
[368686898,1751297235558,-490.0,0.00013986,2]
[368686899,1751297235580,-490.0,0.00013986,2]
[368686900,1751297235602,-1302.04,0.00013986,2]
[368686901,1751297235623,-490.0,0.00013986,2]
[368686902,1751297235645,-602.92,0.00013986,2]
[368686903,1751297235672,-151.0,0.00013986,2]
[368686904,1751297235696,-281.30022,0.00013986,2]
[368686905,1751297235718,-490.0,0.00013986,2]
[368686906,1751297235742,-490.0,0.00013986,2]
[368686907,1751297235769,-490.0,0.00013986,2]
[368686908,1751297235791,-490.0,0.00013986,2]
[368686909,1751297235814,-1494.44,0.00013986,2]